bitfinex-derivatives/quotes_SOLF0:USTF0_20241229
["timestamp","ask_amount","ask_price","bid_price","bid_amount"]
[1735441623773,8.1652593,193.56,193.5,8.1652593]
[1735441623975,2.5883,193.53,193.5,8.1652593]
[1735441625273,2.5883,193.53,193.49,10.7539593]
[1735441627171,2.5883,193.53,193.5,4.6]
[1735441637181,2.5882,193.54,193.5,4.6]
[1735441640582,2.5882,193.54,193.5,12.7652593]
[1735441643187,2.5882,193.54,193.5,8.1652593]
[1735441643592,11.0652593,193.58,193.5,8.1652593]
[1735441643793,2.5879,193.57,193.52,10.7536593]
[1735441644292,39.82079466,193.6,193.52,10.7536593]
[1735441644494,39.82079466,193.6,193.53,4.6]
[1735441644988,36.92079466,193.6,193.53,4.6]
[1735441645185,2.5877,193.58,193.54,2.5881]
[1735441650392,8.1652593,193.6,193.54,2.5881]
[1735441650593,2.5878,193.57,193.54,2.5881]
[1735441651590,2.5878,193.57,193.53,7.1883]
[1735441652494,8.1652593,193.6,193.53,7.1883]
[1735441653094,2.5879,193.57,193.53,7.1883]
[1735441654395,8.1652593,193.6,193.53,7.1883]
[1735441654598,2.5879,193.56,193.53,7.1883]
[1735441656896,2.5879,193.56,193.53,4.6]
[1735441658095,8.1652593,193.6,193.53,4.6]
[1735441658295,2.5879,193.57,193.53,7.1883]
[1735441659105,15.35414314,193.6,193.53,7.1883]
[1735441659298,2.5879,193.56,193.53,7.1883]
[1735441660796,2.5879,193.56,193.53,4.6]
[1735441670403,2.5879,193.56,193.52,10.7536593]
[1735441671503,2.5879,193.56,193.53,4.6]
[1735441682907,7.18888384,193.59,193.53,4.6]
[1735441683107,2.5878,193.57,193.53,4.6]
[1735441686214,2.5879,193.56,193.53,4.6]
[1735441687709,2.5879,193.56,193.52,10.7536593]
[1735441688710,2.5879,193.56,193.53,4.59]
[1735441690521,8.1652593,193.57,193.53,4.59]
[1735441691522,2.5882,193.54,193.53,4.59]
[1735441693124,15.35414314,193.57,193.53,4.59]
[1735441693325,2.5879,193.56,193.53,4.59]
[1735441697729,2.5879,193.56,193.53,7.1783]
[1735441699628,24.84950392,193.6,193.53,4.59]
[1735441699826,2.5877,193.58,193.54,2.5882]
[1735441700330,2.5878,193.57,193.54,2.5882]
[1735441705227,8.1652593,193.6,193.53,4.59]
[1735441705426,69.07967101,193.61,193.55,2.588]
[1735441705729,47.51301949,193.61,193.55,2.588]
[1735441706131,2.5876,193.58,193.55,2.588]
[1735441707228,2.5875,193.6,193.56,2.5878]
[1735441709133,2.5875,193.6,193.57,2.5877]
[1735441711634,4.1276,193.62,193.58,2.5875]
[1735441711835,2.5872,193.62,193.58,2.5875]
[1735441713344,1.82563478,193.64,193.59,2.5875]
[1735441713639,2.587,193.63,193.59,2.5875]
[1735441714339,2.587,193.63,193.58,8.1652593]
[1735441714539,4.41253478,193.64,193.6,8.1652593]
[1735441714739,1.82563478,193.64,193.6,8.1652593]
[1735441714940,12.8595593,193.68,193.61,2.5871]
[1735441715240,28.75553536,193.69,193.62,8.1652593]
[1735441715633,2.5865,193.67,193.63,2.587]
[1735441716238,2.5863,193.68,193.64,2.5868]
[1735441717143,2.5863,193.68,193.62,8.1652593]
[1735441717342,2.5864,193.67,193.63,2.5869]
[1735441718337,2.5863,193.68,193.64,2.5868]
[1735441718736,30.25443536,193.74,193.64,8.1652593]
[1735441718936,2.5862,193.7,193.65,2.5866]
[1735441720345,2.5862,193.69,193.65,2.5866]
[1735441720539,2.5862,193.69,193.64,15.3420593]
[1735441721136,2.5862,193.69,193.64,12.7552593]
[1735441721341,2.5862,193.69,193.65,2.5867]
[1735441722232,2.5861,193.7,193.66,8.1652593]
[1735441725545,2.5861,193.7,193.66,10.7518593]
[1735441731549,2.5861,193.7,193.66,8.1652593]
[1735441732650,8.1652593,193.71,193.64,4.59]
[1735441732849,8.1652593,193.69,193.64,4.59]
[1735441733753,2.5864,193.68,193.64,4.59]
[1735441734045,8.1652593,193.69,193.64,4.59]
[1735441734450,2.5866,193.66,193.64,4.59]
[1735441736454,2.5867,193.65,193.64,4.59]
[1735441758774,10.7519593,193.65,193.64,4.59]
[1735441760579,2.5867,193.65,193.64,4.59]
[1735441766980,1.524,193.68,193.64,4.59]
[1735441767181,2.5865,193.67,193.64,4.59]
[1735441767983,7.18888384,193.69,193.64,4.59]
[1735441768183,2.5866,193.66,193.64,4.59]
[1735441769694,2.5866,193.66,193.64,12.7552593]
[1735441770690,2.9,193.7,193.64,12.7552593]
[1735441772792,2.5866,193.66,193.64,12.7552593]
[1735441779191,2.9,193.7,193.64,12.7552593]
[1735441779393,2.5867,193.65,193.64,4.59]
[1735441787902,10.7519593,193.65,193.64,4.59]
[1735441789906,13.6519593,193.65,193.64,4.59]
[1735441797410,11.0652593,193.65,193.53,8.1652593]
[1735441797616,8.1652593,193.61,193.53,8.1652593]
[1735441799216,8.1652593,193.61,193.53,10.7535593]
[1735441799517,8.1652593,193.61,193.55,8.1652593]
[1735441800313,2.5875,193.59,193.55,8.1652593]
[1735441800520,18.25414314,193.64,193.57,8.1652593]
[1735441801017,2.5875,193.6,193.57,8.1652593]
[1735441801621,2.5875,193.59,193.57,8.1652593]
[1735441802921,2.5875,193.59,193.56,2.5879]
[1735441803928,2.5881,193.55,193.52,1.4813]
[1735441810622,2.5874,193.6,193.53,8.1652593]
[1735441810830,8.1652593,193.6,193.53,8.1652593]
[1735441811720,2.588,193.56,193.53,8.1652593]
[1735441811928,8.1652593,193.58,193.52,1.4813]
[1735441813327,2.5881,193.55,193.52,1.4813]
[1735441814328,2.5882,193.54,193.51,10.7537593]
[1735441814528,8.1652593,193.58,193.51,8.1652593]
[1735441814829,8.1652593,193.56,193.5,1.5151]
[1735441815224,8.1652593,193.54,193.49,2.65680568]
[1735441815431,8.1652593,193.52,193.46,1.5899]
[1735441815628,8.1652593,193.52,193.45,8.1652593]
[1735441815825,2.5891,193.47,193.44,2.5895]
[1735441816229,2.5891,193.47,193.43,9.7175593]
[1735441817527,2.5891,193.47,193.43,12.3071593]
[1735441817723,2.5891,193.47,193.43,9.7175593]
[1735441817924,8.1652593,193.48,193.4,2.9]
[1735441818227,2.5896,193.44,193.4,13.6552593]
[1735441819430,2.5894,193.45,193.4,13.6552593]
[1735441819828,2.5894,193.45,193.41,2.5899]
[1735441820030,2.5893,193.46,193.41,2.5899]
[1735441824241,7.18888384,193.55,193.42,8.1652593]
[1735441824431,10.7541593,193.49,193.44,2.5895]
[1735441825535,2.589,193.48,193.44,2.5895]
[1735441829443,8.1652593,193.49,193.44,2.5895]
[1735441829644,2.5891,193.47,193.44,2.5895]
[1735441831945,2.9,193.52,193.44,2.5895]
[1735441832143,1.5528,193.56,193.44,8.1652593]
[1735441832339,8.1652593,193.52,193.44,8.1652593]
[1735441834143,2.5888,193.49,193.46,2.5892]
[1735441835541,2.5887,193.5,193.46,2.5892]
[1735441836047,2.5887,193.5,193.47,2.5891]
[1735441836742,2.5887,193.5,193.46,2.5892]
[1735441852064,8.1652593,193.51,193.44,8.1652593]
[1735441852361,8.1652593,193.49,193.41,1.5335]
[1735441853461,2.5893,193.46,193.42,2.5897]
[1735441854068,8.1652593,193.47,193.4,8.1652593]
[1735441854260,2.5892,193.47,193.43,2.5896]
[1735441856964,2.5887,193.5,193.44,8.1652593]
[1735441857168,8.1652593,193.51,193.44,8.1652593]
[1735441857763,10.7539593,193.51,193.46,2.5892]
[1735441857967,10.7539593,193.51,193.44,8.1652593]
[1735441858380,10.7539593,193.51,193.46,2.5892]
[1735441860572,10.7539593,193.51,193.47,2.5891]
[1735441866777,2.5887,193.51,193.47,2.5891]
[1735441867178,8.1652593,193.52,193.45,8.1652593]
[1735441868177,2.5887,193.51,193.46,2.5891]
[1735441871080,8.1652593,193.52,193.46,2.5891]
[1735441871380,2.5888,193.5,193.46,2.5891]
[1735441876380,11.64678384,193.55,193.45,8.1652593]
[1735441876683,2.5884,193.52,193.47,2.5891]
[1735441877786,8.1652593,193.53,193.47,2.5891]
[1735441878080,2.5886,193.51,193.47,2.5891]
[1735441882887,8.1652593,193.53,193.47,2.5891]
[1735441883087,2.5887,193.5,193.47,2.5891]
[1735441887890,8.1652593,193.53,193.45,8.1652593]
[1735441888093,2.5887,193.5,193.46,2.5892]
[1735441892294,2.5887,193.51,193.47,2.589]
[1735441892491,8.1652593,193.53,193.45,8.1652593]
[1735441893392,2.5888,193.5,193.46,2.5892]
[1735441905216,2.5888,193.5,193.45,2.5893]
[1735441908313,7.18888384,193.54,193.45,8.1652593]
[1735441908514,7.18888384,193.54,193.5,8.1652593]
[1735441909109,2.5883,193.54,193.5,8.1652593]
[1735441911314,2.5882,193.54,193.5,10.7539593]
[1735441917120,2.5881,193.55,193.52,8.1652593]
[1735441924225,2.5877,193.58,193.54,10.7534593]
[1735441925018,2.5877,193.58,193.54,8.1652593]
[1735441925923,2.5875,193.59,193.55,2.5879]
[1735441926120,1.6331,193.61,193.56,8.1652593]
[1735441926813,4.2204,193.61,193.56,8.1652593]
[1735441928524,4.2204,193.61,193.57,2.5877]
[1735441936925,1.6331,193.61,193.54,2.9]
[1735441937126,9.7983593,193.61,193.54,11.0652593]
[1735441938425,2.5876,193.59,193.54,13.6533593]
[1735441944126,2.5876,193.59,193.55,2.588]
[1735441947028,2.5874,193.61,193.57,2.5877]
[1735441962339,2.5867,193.65,193.6,10.7525593]
[1735441964344,8.1652593,193.62,193.55,2.9]
[1735441965044,8.1652593,193.62,193.55,5.488]
[1735441966548,2.5874,193.6,193.55,5.488]
[1735441969143,2.5874,193.6,193.56,8.1652593]
[1735441969744,2.5874,193.6,193.56,10.7531593]
[1735441973949,10.08888384,193.66,193.58,8.1652593]
[1735441974157,18.25414314,193.66,193.58,8.1652593]
[1735441974349,15.35414314,193.66,193.58,8.1652593]
[1735441974853,8.1652593,193.66,193.58,8.1652593]
[1735441975257,2.5868,193.64,193.59,2.5875]
[1735441979963,2.5869,193.64,193.59,2.5875]
[1735441981168,8.1652593,193.66,193.55,2.9]
[1735441981367,8.1652593,193.64,193.57,10.7529593]
[1735441982468,2.5873,193.61,193.57,10.7529593]
[1735441983869,2.5873,193.61,193.57,8.1652593]
[1735441986668,2.5873,193.61,193.56,2.5879]
[1735441987068,8.1652593,193.62,193.54,54.01232283]
[1735441987271,8.1652593,193.62,193.54,62.17758213]
[1735441987563,2.588,193.56,193.54,54.01232283]
[1735441987763,8.1652593,193.58,193.54,54.01232283]
[1735441988069,2.5882,193.54,193.49,8.1652593]
[1735441988266,2.5882,193.54,193.48,5.4889]
[1735441988466,2.5882,193.54,193.49,8.1652593]
[1735441989666,2.588,193.55,193.51,8.1652593]
[1735441991673,2.5878,193.57,193.51,10.7537593]
[1735441991864,2.5878,193.57,193.53,8.1652593]
[1735441994964,1.491,193.59,193.54,2.5882]
[1735441995172,1.491,193.59,193.53,11.0652593]
[1735441996571,2.5877,193.58,193.54,2.5881]
[1735441996879,1.491,193.59,193.53,11.0652593]
[1735441997072,4.0785,193.59,193.55,8.1652593]
[1735441998873,2.5875,193.59,193.55,8.1652593]
[1735442004070,2.5875,193.59,193.54,2.5881]
[1735442004278,2.5875,193.59,193.54,10.7533593]
[1735442007577,8.1652593,193.61,193.54,10.7533593]
[1735442007783,8.1652593,193.59,193.5,2.9]
[1735442007997,8.1652593,193.59,193.51,8.1652593]
[1735442008179,8.1652593,193.57,193.5,2.9]
[1735442008378,1.6067,193.58,193.5,2.9]
[1735442008577,2.5881,193.55,193.5,5.4887]
[1735442009276,1.6067,193.58,193.5,2.9]
[1735442009481,2.5879,193.57,193.51,8.1652593]
[1735442009677,2.5879,193.57,193.53,8.1652593]
[1735442011182,2.5879,193.57,193.53,10.7535593]
[1735442013784,2.5879,193.57,193.53,8.1652593]
[1735442020190,2.5875,193.59,193.53,8.1652593]
[1735442020384,2.5875,193.59,193.55,8.1652593]
[1735442021685,2.5877,193.58,193.55,8.1652593]
[1735442028892,2.5876,193.59,193.55,8.1652593]
[1735442033701,2.5876,193.59,193.54,2.5881]
[1735442034090,2.5876,193.59,193.54,10.7533593]
[1735442034700,2.5876,193.59,193.54,2.5881]
[1735442034901,2.5876,193.59,193.54,10.7533593]
[1735442041501,2.5876,193.59,193.54,2.5881]
[1735442041706,2.5876,193.59,193.54,10.7533593]
[1735442049519,8.1652593,193.61,193.54,8.1652593]
[1735442049716,2.5877,193.58,193.54,8.1652593]
[1735442049918,2.5877,193.58,193.53,5.4883]
[1735442050623,2.588,193.55,193.5,8.1652593]
[1735442053420,2.588,193.55,193.51,2.5886]
[1735442057526,2.5879,193.56,193.51,2.5886]
[1735442066434,2.588,193.55,193.51,2.5886]
[1735442066635,8.1652593,193.57,193.51,2.5886]
[1735442067435,2.588,193.56,193.51,2.5886]
[1735442069930,2.5881,193.55,193.51,2.5886]
[1735442073334,2.5881,193.55,193.5,10.7539593]
[1735442074341,2.5881,193.55,193.5,2.5887]
[1735442074539,2.5881,193.55,193.5,10.7539593]
[1735442074838,8.1652593,193.53,193.46,2.65728774]
[1735442075035,8.1652593,193.51,193.46,2.65728774]
[1735442076035,8.1652593,193.49,193.44,54.03185949]
[1735442076236,2.9,193.54,193.45,8.1652593]
[1735442076543,8.1652593,193.52,193.45,8.1652593]
[1735442076737,2.5887,193.5,193.45,10.7546593]
[1735442076937,8.1652593,193.52,193.45,8.1652593]
[1735442078433,8.1652593,193.5,193.44,56.62125949]
[1735442078637,2.9,193.54,193.44,54.03185949]
[1735442078840,8.1652593,193.5,193.44,54.03185949]
[1735442079440,2.589,193.48,193.44,54.03185949]
[1735442086454,2.589,193.48,193.43,10.7548593]
[1735442091654,2.589,193.48,193.43,2.5896]
[1735442094156,2.589,193.48,193.43,10.7548593]
[1735442096859,2.589,193.48,193.43,2.5896]
[1735442102168,2.5889,193.49,193.44,10.7547593]
[1735442102364,2.9,193.54,193.44,8.1652593]
[1735442102569,8.1652593,193.52,193.46,8.1652593]
[1735442103665,10.7537593,193.52,193.47,2.589]
[1735442104267,10.7537593,193.52,193.48,2.589]
[1735442104566,8.1652593,193.54,193.48,2.589]
[1735442104861,1.5906,193.56,193.48,2.589]
[1735442105068,8.1652593,193.55,193.48,2.589]
[1735442105562,2.5884,193.53,193.48,2.589]
[1735442105963,2.588,193.55,193.5,2.5887]
[1735442106170,28.75553536,193.59,193.52,8.1652593]
[1735442106361,7.18888384,193.58,193.52,8.1652593]
[1735442107568,9.77658384,193.58,193.53,2.5883]
[1735442107771,2.5877,193.58,193.53,2.5883]
[1735442110769,8.1652593,193.61,193.54,8.1652593]
[1735442112471,10.7525593,193.61,193.56,2.5879]
[1735442114876,2.5874,193.6,193.56,2.5879]
[1735442127688,1.82548757,193.64,193.59,2.5875]
[1735442127892,1.82548757,193.64,193.6,8.1652593]
[1735442128387,2.5868,193.65,193.6,10.7525593]
[1735442128787,8.1652593,193.66,193.6,10.7525593]
[1735442128992,2.5869,193.64,193.6,10.7525593]
[1735442131091,2.5869,193.64,193.6,8.1652593]
[1735442133896,2.5869,193.64,193.59,2.5875]
[1735442140795,8.1652593,193.64,193.5,3.1557]
[1735442141098,8.1652593,193.62,193.55,8.1652593]
[1735442141998,2.5874,193.61,193.56,2.5879]
[1735442142191,8.1652593,193.62,193.51,2.88]
[1735442142593,8.1652593,193.62,193.54,8.1652593]
[1735442143499,2.5876,193.59,193.54,10.7533593]
[1735442144897,2.5876,193.59,193.54,13.6333593]
[1735442145098,2.5874,193.6,193.56,8.1652593]
[1735442146496,2.5874,193.6,193.56,10.7531593]
[1735442150196,8.1652593,193.62,193.56,8.1652593]
[1735442150399,2.5876,193.59,193.56,8.1652593]
[1735442150591,2.5876,193.59,193.54,11.0452593]
[1735442151293,2.5876,193.59,193.54,13.6333593]
[1735442151902,2.5872,193.62,193.58,2.5876]
[1735442152102,10.7524593,193.62,193.56,8.1652593]
[1735442152600,2.5873,193.61,193.56,8.1652593]
[1735442153402,2.5873,193.61,193.56,10.7531593]
[1735442157705,2.5873,193.61,193.56,2.5879]
[1735442157907,2.5873,193.61,193.56,10.7531593]
[1735442160506,8.1652593,193.62,193.54,11.0452593]
[1735442160708,2.5875,193.6,193.55,2.588]
[1735442162310,7.18888384,193.64,193.54,8.1652593]
[1735442162515,2.5872,193.61,193.56,2.5879]
[1735442162710,10.7524593,193.61,193.56,2.5879]
[1735442163015,8.1652593,193.61,193.56,2.5879]
[1735442163214,2.5874,193.6,193.54,8.1652593]
[1735442163415,2.5874,193.6,193.55,2.588]
[1735442167013,2.5874,193.6,193.56,2.5879]
[1735442168818,28.75553536,193.64,193.56,8.1652593]
[1735442169117,36.92079466,193.64,193.56,8.1652593]
[1735442169921,8.1652593,193.64,193.56,8.1652593]
[1735442170611,10.7521593,193.64,193.59,2.5874]
[1735442171411,2.5869,193.64,193.59,2.5874]
[1735442171612,2.5869,193.64,193.6,10.7525593]
[1735442172520,2.5867,193.65,193.61,2.5872]
[1735442172815,9.7669593,193.67,193.6,8.1652593]
[1735442173016,2.5866,193.66,193.62,2.5871]
[1735442173220,2.5866,193.66,193.62,10.7523593]
[1735442177724,7.18888384,193.7,193.62,8.1652593]
[1735442177925,2.5864,193.68,193.63,2.5869]
[1735442180628,8.1652593,193.7,193.59,3.1458]
[1735442180828,8.1652593,193.66,193.59,11.0452593]
[1735442181424,2.587,193.64,193.59,13.6327593]
[1735442182133,2.5867,193.65,193.6,2.5874]
[1735442183431,10.7518593,193.66,193.61,10.7524593]
[1735442183827,8.1652593,193.69,193.61,8.1652593]
[1735442184427,2.5864,193.68,193.63,2.587]
[1735442184623,2.5864,193.68,193.63,10.7522593]
[1735442186237,2.5864,193.68,193.63,2.587]
[1735442186431,2.5864,193.68,193.63,10.7522593]
[1735442187131,10.7514593,193.69,193.64,2.5868]
[1735442189440,1.82486192,193.71,193.63,8.1652593]
[1735442189633,7.18888384,193.74,193.69,8.1652593]
[1735442189835,7.18888384,193.74,193.72,8.1652593]
[1735442190039,28.75553536,193.75,193.72,8.1652593]
[1735442190939,28.75553536,193.75,193.72,10.7509593]
[1735442191336,2.5852,193.77,193.72,10.7509593]
[1735442191639,2.5852,193.77,193.72,8.1652593]
[1735442196546,8.1652593,193.79,193.72,8.1652593]
[1735442196846,2.5853,193.76,193.71,5.4659]
[1735442197344,2.5855,193.74,193.7,2.88]
[1735442199140,2.5855,193.74,193.7,11.0452593]
[1735442200653,2.5854,193.75,193.7,11.0452593]
[1735442200951,1.5332,193.8,193.74,10.7506593]
[1735442201352,4.118,193.8,193.74,8.1652593]
[1735442202548,4.118,193.8,193.75,2.5853]
[1735442203855,2.585,193.79,193.74,8.1652593]
[1735442204054,9.6984593,193.8,193.74,8.1652593]
[1735442205553,2.5851,193.78,193.73,10.7508593]
[1735442207254,2.5851,193.78,193.73,2.5856]
[1735442207454,2.5851,193.78,193.73,10.7508593]
[1735442222659,7.18888384,193.84,193.76,2.5852]
[1735442222864,15.35414314,193.84,193.77,11.0452593]
[1735442223265,7.18888384,193.83,193.77,11.0452593]
[1735442224175,7.18888384,193.83,193.81,8.1652593]
[1735442224773,15.35414314,193.88,193.81,8.1652593]
[1735442225169,2.5838,193.87,193.81,10.7497593]
[1735442225369,8.1652593,193.86,193.77,2.88]
[1735442225563,8.1652593,193.84,193.77,11.0452593]
[1735442225772,2.5845,193.82,193.77,11.0452593]
[1735442228375,2.5846,193.81,193.77,11.0452593]
[1735442233870,8.1652593,193.84,193.71,45.34691216]
[1735442234078,2.5851,193.77,193.73,2.5856]
[1735442234281,2.5851,193.77,193.73,10.7508593]
[1735442239383,2.5852,193.76,193.73,8.1652593]
[1735442241488,2.5851,193.77,193.73,8.1652593]
[1735442242389,8.1652593,193.78,193.72,11.0452593]
[1735442243285,2.5852,193.77,193.72,11.0452593]
[1735442243586,8.1652593,193.78,193.72,2.88]
[1735442243781,8.1652593,193.78,193.72,11.0452593]
[1735442244186,8.1652593,193.78,193.72,8.1652593]
[1735442244583,2.5855,193.75,193.72,8.1652593]
[1735442251496,2.586,193.71,193.65,2.5867]
[1735442251685,8.1652593,193.73,193.66,8.1652593]
[1735442251893,8.1652593,193.73,193.64,2.25352586]
[1735442252094,8.1652593,193.69,193.61,8.1652593]
[1735442252692,2.5867,193.66,193.61,8.1652593]
[1735442253596,8.1652593,193.67,193.58,44.98710774]
[1735442253899,8.1652593,193.65,193.58,53.15236704]
[1735442254095,2.5871,193.62,193.58,53.15236704]
[1735442255098,2.587,193.63,193.58,53.15236704]
[1735442256502,2.587,193.63,193.58,55.73996704]
[1735442261004,2.5871,193.62,193.58,55.73996704]
[1735442261204,2.5871,193.62,193.58,53.15236704]
[1735442273316,8.1652593,193.65,193.58,44.98710774]
[1735442273613,2.5872,193.61,193.59,8.1652593]
[1735442274619,2.5871,193.62,193.59,8.1652593]
[1735442277022,2.5871,193.62,193.58,47.57470774]
[1735442277217,2.5871,193.62,193.58,55.73996704]
[1735442278723,2.587,193.63,193.59,2.5874]
[1735442278917,1.5223,193.67,193.6,8.1652593]
[1735442279118,1.5223,193.67,193.62,8.1652593]
[1735442279624,2.5867,193.65,193.62,10.7523593]
[1735442280917,2.5868,193.64,193.62,8.1652593]
[1735442284318,2.5868,193.64,193.61,2.5872]
[1735442284526,2.5871,193.63,193.6,10.7525593]
[1735442284719,2.5871,193.63,193.6,8.1652593]
[1735442284922,8.1652593,193.66,193.58,44.98710774]
[1735442285225,2.5874,193.6,193.58,44.98710774]
[1735442291127,2.5874,193.6,193.57,8.1652593]
[1735442291336,2.5876,193.58,193.57,8.1652593]
[1735442291827,2.5876,193.58,193.55,9.6632593]
[1735442292024,2.5876,193.58,193.55,8.1652593]
[1735442292835,2.5878,193.57,193.54,2.88]
[1735442293432,2.5879,193.56,193.54,2.88]
[1735442294839,2.5878,193.57,193.54,2.88]
[1735442295636,2.5878,193.57,193.55,8.1652593]
[1735442296736,31.87013536,193.64,193.55,8.1652593]
[1735442297038,8.1652593,193.63,193.57,8.1652593]
[1735442297238,2.5874,193.6,193.57,8.1652593]
[1735442299240,8.1652593,193.63,193.57,8.1652593]
[1735442299437,2.5875,193.59,193.55,10.7532593]
[1735442305643,2.5875,193.59,193.55,2.588]
[1735442305846,2.5875,193.59,193.56,8.1652593]
[1735442308040,8.1652593,193.63,193.54,8.1652593]
[1735442308441,8.1652593,193.61,193.54,8.1652593]
[1735442308641,2.5875,193.59,193.52,11.0452593]
[1735442308844,8.1652593,193.61,193.52,11.0452593]
[1735442309243,2.588,193.56,193.52,13.6336593]
[1735442309441,8.1652593,193.61,193.54,8.1652593]
[1735442309843,2.5878,193.57,193.53,2.5882]
[1735442310044,2.5878,193.57,193.54,8.1652593]
[1735442311073,2.5879,193.56,193.54,8.1652593]
[1735442311953,2.588,193.55,193.54,8.1652593]
[1735442312240,2.588,193.55,193.52,8.1652593]
[1735442313138,2.5884,193.53,193.49,4.202]
[1735442313345,2.5884,193.53,193.5,8.1652593]
[1735442313546,2.5884,193.53,193.49,9.7784593]
[1735442316047,2.5884,193.53,193.49,1.6132]
[1735442316245,2.5884,193.53,193.49,9.7784593]
[1735442318646,2.5884,193.53,193.49,10.7540593]
[1735442319647,2.5884,193.53,193.49,2.5888]
[1735442319847,2.5884,193.53,193.49,10.7540593]
[1735442328754,2.5881,193.55,193.51,8.1652593]
[1735442330048,2.5881,193.55,193.51,10.7537593]
[1735442332355,8.1652593,193.57,193.43,5.38317413]
[1735442332554,2.5885,193.52,193.48,10.7542593]
[1735442337158,2.5885,193.52,193.48,2.589]
[1735442337353,2.5885,193.52,193.49,8.1652593]
[1735442342862,2.5885,193.52,193.48,2.589]
[1735442343060,2.5885,193.52,193.49,8.1652593]
[1735442349666,2.5885,193.52,193.48,2.589]
[1735442349876,8.1652593,193.53,193.43,5.38317413]
[1735442350067,8.1652593,193.53,193.46,8.1652593]
[1735442350465,2.5891,193.48,193.46,8.1652593]
[1735442350669,8.1652593,193.51,193.46,8.1652593]
[1735442351266,8.1652593,193.51,193.44,2.88]
[1735442351467,2.5893,193.46,193.44,8.1652593]
[1735442352767,8.1652593,193.51,193.44,8.1652593]
[1735442352972,2.5891,193.47,193.44,8.1652593]
[1735442355076,2.589,193.49,193.46,8.1652593]
[1735442355272,8.1652593,193.52,193.46,8.1652593]
[1735442355677,2.5888,193.5,193.46,8.1652593]
[1735442357391,2.5888,193.49,193.46,8.1652593]
[1735442358978,2.5888,193.49,193.45,2.5894]
[1735442359184,2.5888,193.49,193.45,10.7546593]
[1735442361983,2.5888,193.49,193.46,2.5892]
[1735442362182,8.1652593,193.52,193.45,8.1652593]
[1735442362387,9.7733593,193.54,193.47,8.1652593]
[1735442363388,2.5885,193.52,193.48,2.5889]
[1735442366284,2.5883,193.53,193.49,2.5888]
[1735442366489,8.1652593,193.56,193.49,8.1652593]
[1735442367387,8.1652593,193.56,193.51,10.7538593]
[1735442367586,28.75553536,193.58,193.51,8.1652593]
[1735442367789,36.92079466,193.58,193.51,8.1652593]
[1735442368093,8.1652593,193.58,193.51,8.1652593]
[1735442369291,2.5881,193.55,193.51,10.7537593]
[1735442371391,2.5876,193.58,193.54,2.5881]
[1735442371591,7.18888384,193.61,193.55,8.1652593]
[1735442372503,2.5874,193.6,193.56,2.5879]
[1735442373593,28.40106549,193.62,193.57,8.1652593]
[1735442373899,30.98816549,193.62,193.58,2.5875]
[1735442375796,2.5868,193.64,193.6,2.5873]
[1735442381435,8.1652593,193.66,193.6,2.5873]
[1735442381601,2.587,193.63,193.6,2.5873]
[1735442383112,2.5872,193.61,193.53,4.5671]
[1735442383301,8.1652593,193.62,193.55,8.1652593]
[1735442383504,8.1652593,193.62,193.55,11.0452593]
[1735442384397,2.5876,193.59,193.55,5.468]
[1735442387917,2.5876,193.59,193.55,2.588]
[1735442390113,8.1652593,193.62,193.54,8.1652593]
[1735442390414,2.5877,193.58,193.54,10.7534593]
[1735442391220,2.5877,193.58,193.54,8.1652593]
[1735442395025,8.1652593,193.6,193.54,8.1652593]
[1735442395220,2.5878,193.57,193.54,8.1652593]
[1735442395922,2.5877,193.58,193.54,8.1652593]
[1735442396121,1.4874,193.61,193.56,8.1652593]
[1735442397026,2.5874,193.6,193.56,10.7530593]
[1735442398440,2.5874,193.6,193.56,8.1652593]
[1735442398629,2.5874,193.6,193.57,2.5878]
[1735442400325,2.5875,193.59,193.56,10.7531593]
[1735442403133,1.4874,193.61,193.56,8.1652593]
[1735442403932,2.5874,193.6,193.57,2.5877]
[1735442415235,2.5875,193.59,193.57,2.5877]
[1735442416337,2.5875,193.59,193.56,10.7531593]
[1735442416641,2.5877,193.58,193.54,8.1652593]
[1735442417539,2.5877,193.58,193.55,2.588]